bitfinex/quotes_BTCUSD_20250802
["timestamp","ask_amount","ask_price","bid_price","bid_amount"]
[1754168368698,0.03240554,112900.0,112890.0,0.18947]
[1754168368913,0.03040554,112900.0,112890.0,0.18947]
[1754168369120,0.00930566,112900.0,112890.0,0.18947]
[1754168369753,0.00930566,112900.0,112890.0,0.17196]
[1754168370188,0.02317118,112900.0,112890.0,0.17196]
[1754168370646,0.02317118,112900.0,112890.0,0.13704]
[1754168371977,0.02317118,112900.0,112880.0,0.1751]
[1754168372194,0.04522963,112900.0,112880.0,0.1751]
[1754168372403,0.38522963,112900.0,112880.0,0.2053095]
[1754168372767,0.38422963,112900.0,112880.0,0.2053095]
[1754168373004,0.38422963,112900.0,112890.0,0.03492]
[1754168373228,0.38522963,112900.0,112890.0,0.03492]
[1754168373873,0.38522963,112900.0,112890.0,0.03806]
[1754168374673,0.38522963,112900.0,112890.0,0.04001]
[1754168375078,0.04522963,112900.0,112890.0,0.13195151]
[1754168375285,0.03692397,112900.0,112890.0,0.13416605]
[1754168375463,0.03592397,112900.0,112890.0,0.13416605]
[1754168375658,0.02205845,112900.0,112890.0,0.13416605]
[1754168375862,0.001,112900.0,112890.0,0.13416605]
[1754168376301,0.1,112920.0,112890.0,0.13416605]
[1754168376509,0.10830626,112920.0,112900.0,0.03806]
[1754168376717,0.44830626,112920.0,112910.0,0.00314]
[1754168376975,0.44830626,112920.0,112910.0,0.00509]
[1754168377104,0.44830626,112920.0,112910.0,0.04001]
[1754168377105,0.10830626,112920.0,112910.0,0.04001]
[1754168377741,0.13013879,112920.0,112910.0,0.04001]
[1754168377941,0.13013879,112920.0,112910.0,0.05906666]
[1754168378571,0.13113879,112920.0,112910.0,0.05906666]
[1754168379149,0.13013879,112920.0,112910.0,0.05906666]
[1754168379557,0.13113879,112920.0,112910.0,0.05906666]
[1754168379790,0.13113386,112920.0,112910.0,0.05906666]
[1754168380432,0.13113386,112920.0,112910.0,0.13028222]
[1754168380644,0.10108472,112920.0,112910.0,0.13028222]
[1754168380868,0.10108472,112920.0,112910.0,0.22112921]
[1754168381122,0.10108472,112920.0,112910.0,0.21891506]
[1754168381570,0.10008472,112920.0,112910.0,0.21891506]
[1754168382009,0.10008472,112920.0,112910.0,0.23736408]
[1754168382237,0.10008472,112920.0,112910.0,0.23636408]
[1754168383117,0.10008472,112920.0,112910.0,0.23836408]
[1754168384164,0.10008472,112920.0,112910.0,0.24036408]
[1754168384399,0.10008472,112920.0,112910.0,0.26746878]
[1754168385894,0.03870204,112960.0,112920.0,0.01744902]
[1754168386118,0.04745774,112960.0,112930.0,0.2659066]
[1754168386343,0.04745774,112960.0,112940.0,0.00314]
[1754168386344,0.0087557,112960.0,112940.0,0.00314]
[1754168386553,0.0087557,112960.0,112940.0,0.17506]
[1754168386739,0.0087557,112960.0,112940.0,0.14014]
[1754168386949,0.0107557,112960.0,112950.0,0.03492]
[1754168387398,0.0107557,112960.0,112950.0,0.052426]
[1754168387609,0.0087557,112960.0,112950.0,0.052426]
[1754168387851,0.0087557,112960.0,112950.0,0.055566]
[1754168388061,0.04449671,112960.0,112950.0,0.05777936]
[1754168388272,0.02261461,112960.0,112950.0,0.057516]
[1754168388491,0.02261461,112960.0,112950.0,0.1483622]
[1754168388778,0.02461461,112960.0,112950.0,0.1483622]
[1754168389878,0.02261461,112960.0,112950.0,0.1483622]
[1754168390095,0.02261461,112960.0,112950.0,0.23481342]
[1754168390314,0.02361461,112960.0,112950.0,0.23481342]
[1754168390774,0.02261461,112960.0,112950.0,0.23581342]
[1754168391012,0.01433685,112960.0,112950.0,0.23681342]
[1754168391255,0.00047794,112960.0,112950.0,0.23681342]
[1754168391483,0.00047794,112960.0,112950.0,0.23881342]
[1754168392127,0.45674411,113010.0,112960.0,0.01744902]
[1754168392341,0.05075654,112990.0,112970.0,0.22780581]
[1754168392532,0.02215088,112990.0,112980.0,0.00195]
[1754168392780,0.02215088,112990.0,112980.0,0.13085562]
[1754168394113,0.05765589,112990.0,112980.0,0.13085562]
[1754168394331,0.05765589,112990.0,112980.0,0.15763718]
[1754168394546,0.00829484,112990.0,112980.0,0.15763718]
[1754168394763,0.00929484,112990.0,112980.0,0.15763718]
[1754168396001,0.00829484,112990.0,112980.0,0.15763718]
[1754168397087,4.779e-05,112990.0,112980.0,0.29455718]
[1754168397291,0.00828127,112990.0,112980.0,0.2923444]
[1754168399099,0.00828127,112990.0,112980.0,0.2933444]
[1754168399534,0.00828127,112990.0,112980.0,0.2943444]
[1754168400606,0.00828127,112990.0,112980.0,0.31179342]
[1754168401569,0.00828127,112990.0,112980.0,0.17487342]
[1754168401815,0.00828127,112990.0,112980.0,0.31175342]
[1754168404582,4.779e-05,112990.0,112980.0,0.31175342]
[1754168404795,0.00828187,112990.0,112980.0,0.31175342]
[1754168405022,0.00828185,112990.0,112980.0,0.31175342]
[1754168405642,0.00828185,112990.0,112980.0,0.58145342]
[1754168406704,0.00828185,112990.0,112980.0,0.58045342]
[1754168406981,0.00828185,112990.0,112980.0,0.58345342]
[1754168407202,0.00828185,112990.0,112980.0,0.58245342]
[1754168407927,0.00828185,112990.0,112980.0,0.58545342]
[1754168410750,0.00829575,112990.0,112980.0,0.58545342]
[1754168411325,0.00829575,112990.0,112980.0,0.44857342]
[1754168411570,0.00829575,112990.0,112980.0,0.58541342]
[1754168420712,0.00829575,112990.0,112980.0,0.58537342]
[1754168421159,0.00520523,113040.0,113000.0,0.01744902]
[1754168421380,0.01910457,113040.0,113010.0,0.22764503]
[1754168421595,0.03566622,113040.0,113010.0,0.21966945]
[1754168423244,0.37566622,113040.0,113010.0,0.21966945]
[1754168423474,0.39473859,113040.0,113010.0,0.21966945]
[1754168424170,0.39473859,113040.0,113010.0,0.25396945]
[1754168424363,0.38088701,113040.0,113010.0,0.28498879]
[1754168425541,0.41693954,113040.0,113010.0,0.28498879]
[1754168426496,0.41695702,113040.0,113010.0,0.28498879]
[1754168427608,0.41695702,113040.0,113010.0,0.28821879]
[1754168428513,0.43080732,113040.0,113010.0,0.28821879]
[1754168429447,0.61774331,113040.0,113010.0,0.08286945]
[1754168429676,0.02568093,113030.0,113000.0,0.20801556]
[1754168429900,0.01657913,113030.0,113000.0,0.3346284]
[1754168431689,0.0106,113020.0,113000.0,0.35944586]
[1754168432115,0.02717913,113020.0,113000.0,0.35944586]
[1754168432354,0.04103039,113020.0,113000.0,0.35944586]
[1754168432723,0.04103039,113020.0,113000.0,0.09603302]
[1754168432724,0.04103039,113020.0,113010.0,0.1368]
[1754168432942,0.04103039,113020.0,113010.0,0.0232833]
[1754168433156,0.04933313,113020.0,113010.0,0.0232833]
[1754168433369,0.04933313,113020.0,113010.0,0.0612633]
[1754168433806,0.04933313,113020.0,113010.0,0.0633033]
[1754168434179,0.03548187,113020.0,113010.0,0.0633033]
[1754168435064,0.01890274,113020.0,113010.0,0.15414833]
[1754168435252,0.01890274,113020.0,113010.0,0.17159735]
[1754168436065,0.01890274,113020.0,113010.0,0.20795806]
[1754168436265,0.01890274,113020.0,113010.0,0.16938516]
[1754168436466,0.01890274,113020.0,113010.0,0.17159735]
[1754168437596,0.01890274,113020.0,113010.0,0.17259735]
[1754168438261,0.01890274,113020.0,113010.0,0.16759735]
[1754168439924,0.01890274,113020.0,113010.0,0.19419335]
[1754168440153,0.01890274,113020.0,113010.0,0.19198116]
[1754168441043,0.01890274,113020.0,113010.0,0.22740548]
[1754168441733,0.0106,113020.0,113010.0,0.22740548]
[1754168442430,0.0106,113020.0,113010.0,0.49710548]
[1754168443307,0.0106,113020.0,113010.0,0.57184516]
[1754168443552,0.0106,113020.0,113010.0,0.53084284]
[1754168443774,0.0106,113020.0,113010.0,0.49609284]
[1754168443983,0.0106,113020.0,113010.0,0.53084284]
[1754168444618,0.0106,113020.0,113010.0,0.53407284]
[1754168445929,0.0106,113020.0,113010.0,0.53611284]
[1754168446173,0.0106,113020.0,113010.0,0.58972412]
[1754168446810,0.0106,113020.0,113010.0,0.45296412]
[1754168447026,0.0106,113020.0,113010.0,0.58972412]
[1754168448308,0.0106,113020.0,113010.0,0.32002412]
[1754168448522,0.0106,113020.0,113010.0,0.26641284]
[1754168449000,0.0106,113020.0,113010.0,0.08963284]
[1754168449239,0.0106,113020.0,113010.0,0.13772]
[1754168449685,0.02445005,113020.0,113010.0,0.1757]
[1754168449910,0.02445005,113020.0,113010.0,0.19327]
[1754168450370,0.02445005,113020.0,113010.0,0.19227]
[1754168450595,0.02445005,113020.0,113010.0,0.18904]
[1754168451470,0.02445005,113020.0,113010.0,0.19227]
[1754168451684,0.02445005,113020.0,113010.0,0.28294284]
[1754168453155,0.0106,113020.0,113010.0,0.28294284]
[1754168453588,0.0106,113020.0,113010.0,0.30039186]
[1754168454706,0.0106,113020.0,113010.0,0.30139186]
[1754168456963,0.0106,113020.0,113010.0,0.30039186]
[1754168457188,0.0106,113020.0,113010.0,0.57009186]
[1754168457411,0.0106,113020.0,113010.0,0.57209186]
[1754168457634,0.0106,113020.0,113010.0,0.57309186]
[1754168459590,0.0056,113020.0,113010.0,0.57309186]
[1754168460224,0.0056,113020.0,113010.0,0.57209186]
[1754168460637,0.0056,113020.0,113010.0,0.57009186]
[1754168460866,0.0056,113020.0,113010.0,0.57309186]
[1754168461081,0.0056,113020.0,113010.0,0.57409186]
[1754168461526,0.0056,113020.0,113010.0,0.57309186]
[1754168461962,0.0056,113020.0,113010.0,0.57509186]
[1754168484130,0.0056,113020.0,113010.0,0.43837186]
[1754168484347,0.0056,113020.0,113010.0,0.23031284]
[1754168484800,0.0056,113020.0,113010.0,0.26464284]
[1754168485237,0.0056,113020.0,113010.0,0.26264284]
[1754168485700,0.0056,113020.0,113010.0,0.26064284]
[1754168485935,0.0056,113020.0,113010.0,0.28902612]
[1754168488414,0.0056,113020.0,113010.0,0.29216612]
[1754168489997,0.0056,113020.0,113010.0,0.29236612]
[1754168490223,0.0056,113020.0,113010.0,0.29445612]
[1754168490685,0.0056,113020.0,113010.0,0.31190514]
[1754168492010,0.01910198,113040.0,113010.0,0.31190514]
[1754168492223,0.01910198,113040.0,113020.0,0.12891483]
[1754168492438,0.01910198,113040.0,113030.0,0.13893]
[1754168492679,0.01910198,113040.0,113030.0,0.26563284]
[1754168492894,0.01910198,113040.0,113030.0,0.12879284]
[1754168493102,0.01910198,113040.0,113030.0,0.26563284]
[1754168494006,0.00525299,113040.0,113030.0,0.26663284]
[1754168494203,0.00525299,113040.0,113030.0,0.30356485]
[1754168495950,0.00525299,113040.0,113030.0,0.32101387]
[1754168496371,0.00525299,113040.0,113030.0,0.34704786]
[1754168496810,0.00525299,113040.0,113030.0,0.34804786]
[1754168497248,0.00525299,113040.0,113030.0,0.35104786]
[1754168497454,0.00525299,113040.0,113030.0,0.34804786]
[1754168497926,0.00525299,113040.0,113030.0,0.35304786]
[1754168498151,0.00525299,113040.0,113030.0,0.35104786]
[1754168498590,0.00525299,113040.0,113030.0,0.35404786]
[1754168500773,0.00515299,113040.0,113030.0,0.35404786]
[1754168504369,0.00515299,113040.0,113030.0,0.35448786]
[1754168504579,0.00515299,113040.0,113030.0,0.35444786]
[1754168505688,0.00515299,113040.0,113030.0,0.33707884]
[1754168506781,0.00515299,113040.0,113030.0,0.33207884]
[1754168507013,0.00515299,113040.0,113030.0,0.33507884]
[1754168507644,0.00515299,113040.0,113030.0,0.33207884]
[1754168508067,0.00515299,113040.0,113030.0,0.33307884]
[1754168508489,0.00515299,113040.0,113030.0,0.33207884]
[1754168508912,0.00515299,113040.0,113030.0,0.33407884]
[1754168510461,0.00515299,113040.0,113030.0,0.35152786]
[1754168511347,0.00515299,113040.0,113030.0,0.21220786]
[1754168511585,0.00515299,113040.0,113030.0,0.35008786]
[1754168511795,0.00515299,113040.0,113030.0,0.35308786]
[1754168512440,0.00515299,113040.0,113030.0,0.34708786]
[1754168512627,0.00515299,113040.0,113030.0,0.35208786]
[1754168512827,0.00515299,113040.0,113030.0,0.34708786]
[1754168513029,0.00515299,113040.0,113030.0,0.19175884]
[1754168513230,0.00515299,113040.0,113030.0,0.33283884]
[1754168513896,0.00515299,113040.0,113030.0,0.33483884]
[1754168515972,0.00515299,113040.0,113030.0,0.4060544]
[1754168520193,0.00515299,113040.0,113030.0,0.42350342]
[1754168520669,0.00505299,113040.0,113030.0,0.42350342]
[1754168520816,0.00505299,113040.0,113030.0,0.42150342]
[1754168521189,0.00505299,113040.0,113030.0,0.42450342]
[1754168521635,0.00505299,113040.0,113030.0,0.42150342]
[1754168521857,0.00505299,113040.0,113030.0,0.42650342]
[1754168523288,0.026592,113080.0,113040.0,0.34]
[1754168523514,0.026592,113080.0,113050.0,0.26512425]
[1754168523515,0.03536466,113080.0,113050.0,0.26512425]
[1754168523746,0.03536466,113080.0,113050.0,0.26291284]
[1754168523989,0.04920909,113080.0,113050.0,0.26291284]
[1754168524208,0.03536466,113080.0,113050.0,0.26291284]
[1754168527226,0.07156223,113080.0,113050.0,0.26291284]
[1754168527457,0.03536466,113080.0,113060.0,0.03306]
[1754168527704,0.03536466,113080.0,113060.0,0.17122]
[1754168528814,0.07118318,113080.0,113060.0,0.17122]
[1754168528974,0.03536466,113080.0,113060.0,0.17122]
[1754168530734,0.03536466,113080.0,113060.0,0.1742]
[1754168530964,0.03536466,113080.0,113060.0,0.20302319]
[1754168531182,0.07205444,113080.0,113060.0,0.20302319]
[1754168531382,0.03536466,113080.0,113060.0,0.20302319]
[1754168534608,0.071514,113080.0,113060.0,0.20302319]
[1754168535542,0.411514,113080.0,113060.0,0.20302319]
[1754168537442,0.384922,113080.0,113060.0,0.20302319]
[1754168537672,0.026592,113070.0,113060.0,0.20302319]
[1754168537930,0.026592,113070.0,113060.0,0.20502319]
[1754168538884,0.026592,113070.0,113060.0,0.20602319]
[1754168550683,0.03662692,113080.0,113060.0,0.20602319]
[1754168550885,0.07152533,113080.0,113070.0,0.03855]
[1754168552718,0.07152533,113080.0,113070.0,0.04062]
[1754168553397,0.04493233,113080.0,113070.0,0.06138032]
[1754168554891,0.04493233,113080.0,113070.0,0.04062]
[1754168555809,0.04493233,113080.0,113070.0,0.11183556]
[1754168556026,0.0402757,113090.0,113080.0,0.01744902]
[1754168556282,0.04041892,113090.0,113080.0,0.14670186]
[1754168556495,0.01382792,113090.0,113080.0,0.26725284]
[1754168558785,0.01382792,113090.0,113080.0,0.30238639]
[1754168558999,0.01382792,113090.0,113080.0,0.36498379]
[1754168559902,0.01372792,113090.0,113080.0,0.36498379]
[1754168561752,0.01372792,113090.0,113080.0,0.37882279]
[1754168561961,0.00972792,113090.0,113080.0,0.37882279]
[1754168563049,0.00972792,113090.0,113080.0,0.24082279]
[1754168563268,0.00972792,113090.0,113080.0,0.37906279]
[1754168565723,0.00972792,113090.0,113080.0,0.24082279]
[1754168565945,0.00972792,113090.0,113080.0,0.19185024]
[1754168566164,0.01174792,113090.0,113080.0,0.27241284]
[1754168566614,0.00972792,113090.0,113080.0,0.27241284]
[1754168566840,0.00972792,113090.0,113080.0,0.27249284]
[1754168567307,0.01174792,113090.0,113080.0,0.27249284]
[1754168567533,0.01174792,113090.0,113080.0,0.26716284]
[1754168567803,0.01480792,113090.0,113080.0,0.15878931]
[1754168568022,0.01480792,113090.0,113080.0,0.29702931]
[1754168568474,0.01174792,113090.0,113080.0,0.29702931]
[1754168568694,0.01174792,113090.0,113080.0,0.29202931]
[1754168569100,0.01174792,113090.0,113080.0,0.15678931]
[1754168569326,0.01174792,113090.0,113080.0,0.29724013]
[1754168569555,0.01174792,113090.0,113080.0,0.29502931]
[1754168569783,0.00972792,113090.0,113080.0,0.30031931]
[1754168570246,0.00972792,113090.0,113080.0,0.31776833]
[1754168570469,0.00682792,113090.0,113080.0,0.31776833]
[1754168571818,0.00682792,113090.0,113080.0,0.31476833]
[1754168572030,0.00682792,113090.0,113080.0,0.31776833]
[1754168572701,0.00682792,113090.0,113080.0,0.31976833]
[1754168574952,0.00682792,113090.0,113080.0,0.41225733]
[1754168575420,0.00682792,113090.0,113080.0,0.27401733]
[1754168575653,0.01190792,113090.0,113080.0,0.35957184]
[1754168576365,0.00897792,113090.0,113080.0,0.35957184]
[1754168578454,0.00897792,113090.0,113080.0,0.36168184]
[1754168578676,0.00682792,113090.0,113080.0,0.36473184]
[1754168578894,0.00682792,113090.0,113080.0,0.40399321]
[1754168580491,0.00890792,113090.0,113080.0,0.26282321]
[1754168580761,0.01190792,113090.0,113080.0,0.097489]
[1754168580988,0.03849592,113090.0,113080.0,0.097489]
[1754168581223,0.0523383,113090.0,113080.0,0.097489]
[1754168581453,0.05757213,113090.0,113080.0,0.097489]
[1754168581677,0.14620497,113090.0,113080.0,0.097489]
[1754168582190,0.14097114,113090.0,113080.0,0.095489]
[1754168582419,0.14924452,113090.0,113080.0,0.092489]
[1754168583349,0.06061168,113090.0,113080.0,0.092489]
[1754168583797,0.0437693,113090.0,113080.0,0.125949]
[1754168584703,0.0447693,113090.0,113080.0,0.125949]
[1754168584931,0.0437693,113090.0,113080.0,0.15982246]
[1754168585149,0.0437693,113090.0,113080.0,0.092489]
[1754168585376,0.0467693,113090.0,113080.0,0.092489]
[1754168586800,0.06061106,113090.0,113080.0,0.092489]
[1754168588543,0.89920123,113120.0,113080.0,0.092489]
[1754168588765,0.08863284,113110.0,113080.0,0.12273546]
[1754168588984,0.01384213,113100.0,113080.0,0.092489]
[1754168589184,0.08863284,113100.0,113080.0,0.092489]
[1754168589386,0.02659,113090.0,113080.0,0.092489]
[1754168591148,0.38043233,113090.0,113080.0,0.092489]
[1754168592699,0.38043233,113090.0,113080.0,0.125949]
[1754168594019,0.38043233,113090.0,113080.0,0.131109]
[1754168594876,0.38043233,113090.0,113080.0,0.092489]
[1754168595765,0.46906517,113090.0,113080.0,0.092489]
[1754168596658,0.60806517,113090.0,113080.0,0.092489]
[1754168600704,0.61633443,113090.0,113080.0,0.092489]
[1754168600927,0.63287337,113090.0,113080.0,0.092489]
[1754168601150,0.61633443,113090.0,113080.0,0.092489]
[1754168601420,0.68231062,113090.0,113080.0,0.092489]
[1754168601934,0.69885019,113090.0,113080.0,0.092489]
[1754168603835,0.68500786,113090.0,113080.0,0.092489]
[1754168605686,0.68600786,113090.0,113080.0,0.092489]
[1754168605926,0.62003167,113090.0,113080.0,0.092489]
[1754168606856,0.63387481,113090.0,113080.0,0.092489]
[1754168608899,0.26728481,113090.0,113080.0,0.092489]
[1754168609118,0.29387981,113090.0,113080.0,0.092489]
[1754168610251,0.32845664,113090.0,113080.0,0.092489]
[1754168610470,0.32345664,113090.0,113080.0,0.092489]
[1754168610891,0.28887981,113090.0,113080.0,0.092489]
[1754168611356,0.28887981,113090.0,113080.0,0.126159]
[1754168611582,0.2889046,113090.0,113080.0,0.126159]
[1754168613737,0.2889046,113090.0,113080.0,0.129159]
[1754168614617,0.2889046,113090.0,113080.0,0.131159]
[1754168614825,0.28895616,113090.0,113080.0,0.131159]
[1754168615749,0.17844832,113090.0,113080.0,0.131159]
[1754168615983,0.16460518,113090.0,113080.0,0.131159]
[1754168616898,0.02588518,113090.0,113080.0,0.131159]
[1754168617590,0.00929405,113090.0,113080.0,0.131159]
[1754168617836,0.00829474,113090.0,113080.0,0.131159]
[1754168618320,0.00929474,113090.0,113080.0,0.131159]
[1754168618554,0.00829474,113090.0,113080.0,0.131159]
[1754168618782,0.00829474,113090.0,113080.0,0.16526446]
[1754168619005,0.02213651,113090.0,113080.0,0.16526446]
[1754168619697,0.02213651,113090.0,113080.0,0.131159]
[1754168623387,0.0221324,113090.0,113080.0,0.131159]
[1754168624280,0.01384177,113090.0,113080.0,0.131159]
[1754168634898,0.50515,113110.0,113080.0,0.131159]
[1754168634899,0.34,113110.0,113080.0,0.131159]
[1754168635124,0.02212696,113110.0,113080.0,0.12856646]
[1754168635348,0.02212696,113110.0,113090.0,0.0382]
[1754168635574,0.00828592,113110.0,113100.0,0.00201]
[1754168635790,0.14332,113120.0,113100.0,0.04021]
[1754168636034,0.15160483,113120.0,113110.0,0.00296]
[1754168636484,0.15160483,113120.0,113110.0,0.0382]
[1754168636699,0.15160483,113120.0,113110.0,0.04021]
[1754168637368,0.00828483,113120.0,113110.0,0.04021]
[1754168637578,0.15260483,113120.0,113110.0,0.04021]
[1754168637785,0.00928483,113120.0,113110.0,0.04021]
[1754168638228,0.02235123,113120.0,113110.0,0.04021]
[1754168638442,0.001,113120.0,113110.0,0.04021]
[1754168638675,0.01398479,113120.0,113110.0,0.04021]
[1754168638895,0.02226402,113120.0,113110.0,0.04021]
[1754168639321,0.01398479,113120.0,113110.0,0.04021]
[1754168640650,0.06826031,113120.0,113110.0,0.04021]
[1754168641312,0.01398479,113120.0,113110.0,0.04021]
[1754168643676,0.01298479,113120.0,113110.0,0.12884284]
[1754168644125,0.01898641,113130.0,113110.0,0.13105307]
[1754168644344,0.02740533,113130.0,113110.0,0.12004043]
[1754168644573,0.04023755,113130.0,113120.0,0.10941556]
[1754168644812,0.00047505,113140.0,113120.0,0.11142556]
[1754168645080,0.00047505,113140.0,113130.0,0.04040984]
[1754168645315,0.00047505,113140.0,113130.0,0.04241984]
[1754168646529,0.00047505,113140.0,113130.0,0.04441984]
[1754168646754,0.00047505,113140.0,113130.0,0.13305268]
[1754168646979,0.00047505,113140.0,113130.0,0.14965251]
[1754168648883,0.01370233,113140.0,113130.0,0.04321]
[1754168649106,0.00047505,113140.0,113130.0,0.04321]
[1754168649331,0.01355338,113140.0,113130.0,0.04321]
[1754168649576,0.00047505,113140.0,113130.0,0.04321]
[1754168650273,0.02391505,113140.0,113130.0,0.002]
[1754168650517,0.11254789,113140.0,113130.0,0.002]
[1754168650754,0.12518624,113140.0,113130.0,0.002]
[1754168651199,0.13800043,113140.0,113130.0,0.002]
[1754168651456,0.34,113130.0,113100.0,0.10941556]
[1754168651693,0.45207284,113130.0,113100.0,0.10941556]
[1754168651908,0.45207284,113130.0,113110.0,0.00296]
[1754168652129,0.46591137,113130.0,113110.0,0.00296]
[1754168652842,0.44347137,113130.0,113100.0,0.10645556]
[1754168653068,0.11207284,113120.0,113090.0,0.0382]
[1754168653306,0.02344,113110.0,113080.0,0.127729]
[1754168653536,0.11207284,113110.0,113080.0,0.15058346]
[1754168654233,0.11207284,113100.0,113080.0,0.130689]
[1754168655173,0.08863284,113100.0,113080.0,0.092489]
[1754168655392,0.02344,113090.0,113080.0,0.092489]
[1754168655612,0.13866684,113090.0,113080.0,0.092489]
[1754168656517,0.28622684,113090.0,113080.0,0.092489]
[1754168656739,0.36161987,113090.0,113080.0,0.092489]
[1754168656964,0.31033185,113090.0,113080.0,0.092489]
[1754168657323,0.30206993,113090.0,113080.0,0.092489]
[1754168657757,0.3103309,113090.0,113080.0,0.092489]
[1754168658196,0.30206993,113090.0,113080.0,0.092489]
[1754168659851,0.30306993,113090.0,113080.0,0.092489]
[1754168660078,0.75233437,113090.0,113080.0,0.092489]
[1754168660317,0.76059379,113090.0,113080.0,0.092489]
[1754168660755,0.75559379,113090.0,113080.0,0.092489]
[1754168660983,5.25353779,113090.0,113080.0,0.092489]
[1754168661699,5.27005274,113090.0,113080.0,0.092489]
[1754168662345,5.27004862,113090.0,113080.0,0.092489]
[1754168662583,5.2032332,113090.0,113080.0,0.092489]
[1754168662814,0.7052892,113090.0,113080.0,0.092489]
[1754168663039,0.5577292,113090.0,113080.0,0.092489]
[1754168663259,0.7047692,113090.0,113080.0,0.092489]
[1754168668550,0.7297692,113090.0,113080.0,0.092489]
[1754168668767,0.81860676,113090.0,113080.0,0.092489]
[1754168669262,5.31655076,113090.0,113080.0,0.092489]
[1754168669753,0.04244902,113080.0,113050.0,0.10946556]
[1754168669960,0.26011284,113070.0,113050.0,0.10946556]
[1754168670175,0.30806605,113070.0,113050.0,0.10946556]
[1754168670583,0.026601,113060.0,113050.0,0.10946556]
[1754168670854,0.11523384,113060.0,113050.0,0.10946556]
[1754168671766,0.11523384,113060.0,113050.0,0.03825]
[1754168671767,0.45523384,113060.0,113050.0,0.03825]
[1754168671982,0.45523384,113060.0,113050.0,0.03872758]
[1754168672199,0.52680318,113060.0,113050.0,0.03872758]
[1754168672621,0.5442522,113060.0,113050.0,0.00345758]
[1754168673926,0.5619722,113060.0,113050.0,0.00047758]
[1754168674571,0.5869722,113060.0,113050.0,0.00047758]
[1754168675204,0.59520151,113060.0,113050.0,0.00047758]
[1754168675427,0.6116584,113060.0,113050.0,0.00047758]
[1754168676086,0.6126584,113060.0,113050.0,0.00047758]
[1754168677438,5.1106024,113060.0,113050.0,0.00047758]
[1754168678272,5.12445122,113060.0,113050.0,0.00047758]
[1754168678711,5.57315122,113060.0,113050.0,0.00047758]
[1754168678913,5.75004844,113060.0,113050.0,0.00047758]
[1754168679120,5.57315122,113060.0,113050.0,0.00047758]
[1754168679338,5.75007649,113060.0,113050.0,0.00047758]
[1754168679549,5.77707649,113060.0,113050.0,0.00047758]
[1754168680591,5.79610008,113060.0,113050.0,0.00047758]
[1754168680829,0.04244902,113040.0,113030.0,0.09094314]
[1754168681016,0.33615651,113040.0,113030.0,0.0891463]
[1754168681441,0.37661556,113040.0,113030.0,0.00014316]
[1754168681657,5.2526958,113040.0,113030.0,0.00014316]
[1754168681872,5.1068158,113040.0,113030.0,0.04045316]
[1754168682102,5.2275758,113040.0,113030.0,0.04045316]
[1754168682327,5.2525758,113040.0,113030.0,0.04045316]
[1754168682970,5.2702958,113040.0,113030.0,0.00014316]
[1754168683177,5.2452958,113040.0,113030.0,0.00114316]
[1754168683420,5.2702958,113040.0,113030.0,0.00014316]
[1754168683630,5.46726833,113040.0,113030.0,0.00014316]
[1754168683836,5.29033981,113040.0,113030.0,0.00014316]
[1754168684269,5.25876976,113040.0,113030.0,0.00312316]
[1754168684487,5.25864976,113040.0,113030.0,0.03839316]
[1754168684736,5.02852936,113040.0,113030.0,0.04045316]
[1754168684952,0.68218135,113040.0,113030.0,0.04045316]
[1754168685153,0.68222733,113040.0,113030.0,0.04045316]
[1754168685368,0.53658733,113040.0,113030.0,0.04045316]
[1754168685583,0.68226733,113040.0,113030.0,0.04045316]
[1754168685792,0.75299406,113040.0,113030.0,0.04045316]
[1754168686262,0.63965831,113040.0,113030.0,0.04045316]
[1754168687143,0.50798862,113040.0,113030.0,0.04045316]
[1754168687352,0.65354862,113040.0,113030.0,0.04045316]
[1754168687770,0.65254862,113040.0,113030.0,0.04045316]
[1754168688035,0.65255426,113040.0,113030.0,0.04045316]
[1754168688299,0.50799426,113040.0,113030.0,0.04045316]
[1754168688492,0.07936142,113040.0,113030.0,0.04045316]
[1754168688716,0.05175242,113040.0,113030.0,0.04045316]
[1754168690459,0.05175242,113040.0,113030.0,0.04345316]
[1754168691184,0.05175242,113040.0,113030.0,0.04445316]
[1754168691383,0.03523996,113040.0,113030.0,0.04889848]
[1754168691630,0.03523996,113040.0,113030.0,0.04789848]
[1754168691837,0.02698655,113040.0,113030.0,0.04789848]
[1754168692046,0.02698655,113040.0,113030.0,0.04989848]
[1754168692047,0.0352512,113040.0,113030.0,0.04989848]
[1754168692268,0.02698655,113040.0,113030.0,0.04989848]
[1754168694413,0.03525445,113040.0,113030.0,0.04989848]
[1754168695105,0.03525445,113040.0,113030.0,0.04545316]
[1754168697380,0.05179879,113040.0,113030.0,0.04545316]
[1754168697620,0.03794848,113040.0,113030.0,0.04545316]
[1754168699137,0.06455048,113040.0,113030.0,0.04545316]
[1754168700468,0.15318332,113040.0,113030.0,0.00514316]
[1754168700683,0.20424765,113040.0,113030.0,0.00514316]
[1754168701117,0.22170765,113040.0,113030.0,0.00514316]
[1754168701591,0.21809646,113040.0,113030.0,0.04130316]
[1754168701796,0.21809646,113040.0,113030.0,0.03830316]
[1754168702011,0.21809646,113040.0,113030.0,0.03930316]
[1754168702228,0.21809646,113040.0,113030.0,0.03730316]
[1754168702451,0.31151213,113040.0,113030.0,0.04047316]
[1754168703313,0.16703213,113040.0,113030.0,0.04047316]
[1754168703788,0.52449213,113040.0,113030.0,0.00214316]
[1754168704003,0.50703213,113040.0,113030.0,0.00214316]
[1754168704220,0.52449213,113040.0,113030.0,0.00214316]
[1754168704432,0.59137734,113040.0,113030.0,0.00214316]
[1754168705341,0.60882636,113040.0,113030.0,0.00014316]
[1754168705564,0.61997755,113040.0,113030.0,0.00014316]
[1754168705790,0.60344314,113040.0,113030.0,0.00014316]
[1754168706019,0.6199988,113040.0,113030.0,0.00014316]
[1754168706248,0.6390764,113040.0,113030.0,0.00014316]
[1754168707332,0.65392764,113040.0,113030.0,0.00014316]
[1754168707519,0.65492764,113040.0,113030.0,0.00014316]
[1754168707991,5.15287164,113040.0,113030.0,0.00014316]
[1754168709580,0.03984902,113020.0,112990.0,0.03616]
[1754168709827,0.24954284,113010.0,112990.0,0.03616]
[1754168710014,0.27437633,113010.0,112990.0,0.03616]
[1754168710253,0.28822967,113010.0,112990.0,0.03616]
[1754168711135,0.62880869,113010.0,113000.0,0.00312]
[1754168711367,0.62980869,113010.0,113000.0,0.00312]
[1754168711596,0.62980869,113010.0,113000.0,0.03616]
[1754168712023,0.69774659,113010.0,113000.0,0.03616]
[1754168712452,0.69874659,113010.0,113000.0,0.03616]
[1754168712706,0.69974659,113010.0,113000.0,0.03616]
[1754168713122,0.69874659,113010.0,112990.0,0.03616]
[1754168713587,0.69854659,113010.0,112990.0,0.03616]
[1754168713812,0.71541659,113010.0,112990.0,0.03616]